bitfinex-derivatives/quotes_BTCF0:USTF0_20250222
["timestamp","ask_amount","ask_price","bid_price","bid_amount"]
[1740215857133,0.2399148,96396.0,96395.0,0.39375666]
[1740215858137,0.2409148,96396.0,96395.0,0.39375666]
[1740215859341,0.2085148,96396.0,96395.0,0.39375666]
[1740215859932,0.2085148,96396.0,96395.0,0.2075169]
[1740215877247,0.2075191,96394.0,96393.0,0.20767678]
[1740215877650,0.2075191,96394.0,96393.0,0.00015558]
[1740215879349,0.2085191,96394.0,96393.0,0.00015558]
[1740215881549,0.2085191,96394.0,96393.0,0.20767678]
[1740215881738,0.2085191,96394.0,96393.0,0.00015558]
[1740215882252,0.2085191,96394.0,96393.0,0.20767678]
[1740215882644,0.2085191,96394.0,96393.0,0.00015558]
[1740215883143,0.2085191,96394.0,96393.0,0.20767678]
[1740215886544,0.001,96394.0,96393.0,0.20767678]
[1740215887954,0.2085191,96394.0,96393.0,0.20767678]
[1740215895550,0.2085191,96394.0,96393.0,0.56847678]
[1740215899455,0.2085191,96394.0,96393.0,0.36095558]
[1740215900161,0.2085191,96394.0,96393.0,0.56847678]
[1740215902053,0.2085191,96394.0,96393.0,0.36095558]
[1740215902254,0.2085191,96394.0,96393.0,0.56847678]
[1740215904361,0.2085191,96394.0,96393.0,0.36095558]
[1740215904567,0.2085191,96394.0,96393.0,0.56847678]
[1740215906066,0.2085191,96394.0,96393.0,0.36095558]
[1740215906465,0.2085191,96394.0,96393.0,0.56847678]
[1740215907567,0.2085191,96394.0,96393.0,0.36095558]
[1740215908158,0.2085191,96394.0,96393.0,0.56847678]
[1740215908564,0.2085191,96394.0,96393.0,0.36095558]
[1740215909159,0.2085191,96394.0,96393.0,0.56847678]
[1740215910468,0.2085191,96394.0,96393.0,0.36095558]
[1740215910871,0.2085191,96394.0,96393.0,0.56847678]
[1740215912771,0.2085191,96394.0,96393.0,0.36095558]
[1740215913071,0.2085191,96394.0,96393.0,0.56847678]
[1740215916668,0.2085191,96394.0,96393.0,0.36095558]
[1740215917874,0.2085191,96394.0,96393.0,0.56847678]
[1740215918369,0.2085191,96394.0,96393.0,0.36095558]
[1740215921370,0.2085191,96394.0,96393.0,0.56847678]
[1740215923571,0.001,96394.0,96393.0,0.56847678]
[1740215923773,0.001,96394.0,96393.0,0.60067678]
[1740215924571,0.2085191,96394.0,96393.0,0.60067678]
[1740215924874,0.001,96394.0,96393.0,0.60067678]
[1740215925280,0.2085191,96394.0,96393.0,0.60067678]
[1740215926080,0.001,96394.0,96393.0,0.60067678]
[1740215926280,0.2085191,96394.0,96393.0,0.60067678]
[1740215926481,0.001,96394.0,96393.0,0.60067678]
[1740215941895,0.00015558,96408.0,96407.0,0.2074911]
[1740215942194,0.20764458,96408.0,96407.0,0.5682911]
[1740215943293,0.24084458,96408.0,96407.0,0.5682911]
[1740215943487,0.24984458,96408.0,96407.0,0.5682911]
[1740215945304,0.24884458,96408.0,96407.0,0.5682911]
[1740215945482,0.24684458,96408.0,96407.0,0.5682911]
[1740215945895,0.24084458,96408.0,96407.0,0.5682911]
[1740215946095,0.24684458,96408.0,96407.0,0.5682911]
[1740215946990,0.03935558,96408.0,96407.0,0.5682911]
[1740215947195,0.0304,96412.0,96407.0,0.3608]
[1740215947397,0.0315,96418.0,96417.0,0.2074696]
[1740215947605,0.0315,96418.0,96417.0,0.5682696]
[1740215947990,0.0315,96418.0,96417.0,0.6010696]
[1740215948192,0.062,96418.0,96417.0,0.6010696]
[1740215948390,0.2694674,96418.0,96417.0,0.6010696]
[1740215949101,0.2754674,96418.0,96417.0,0.6010696]
[1740215949501,0.074,96418.0,96417.0,0.6010696]
[1740215950702,0.2814674,96418.0,96417.0,0.6010696]
[1740215952996,0.3134674,96418.0,96417.0,0.6010696]
[1740215953506,0.3134674,96418.0,96417.0,0.5682696]
[1740215959397,0.106,96418.0,96417.0,0.5682696]
[1740215961504,0.3134674,96418.0,96417.0,0.5682696]
[1740215961909,0.106,96418.0,96417.0,0.5682696]
[1740215962107,0.074,96418.0,96417.0,0.5682696]
[1740215962705,0.0425,96418.0,96417.0,0.5682696]
[1740215963004,0.00015558,96427.0,96426.0,0.2074502]
[1740215963311,0.00015558,96427.0,96426.0,0.5682502]
[1740215963612,0.00015558,96427.0,96426.0,0.5987502]
[1740215963812,0.00015558,96427.0,96426.0,0.6316502]
[1740215964512,0.00715558,96427.0,96426.0,0.6316502]
[1740215965109,0.01415558,96427.0,96426.0,0.6326502]
[1740215966305,0.01415558,96427.0,96426.0,0.6656502]
[1740215967206,0.02435348,96427.0,96426.0,0.6656502]
[1740215967716,0.01415558,96427.0,96426.0,0.6656502]
[1740215967914,0.01415558,96427.0,96426.0,0.7693702]
[1740215969506,0.01415558,96427.0,96426.0,0.6656502]
[1740215969705,0.01415558,96427.0,96426.0,0.7692902]
[1740215974811,0.0305,96436.0,96435.0,0.2074309]
[1740215975015,0.0305,96436.0,96435.0,0.5682309]
[1740215975313,0.22765066,96442.0,96441.0,0.207418]
[1740215977017,0.43506646,96442.0,96441.0,0.207418]
[1740215977412,0.23165066,96442.0,96441.0,0.208418]
[1740215978121,0.43906646,96442.0,96441.0,0.208418]
[1740215978619,0.23165066,96442.0,96441.0,0.208418]
[1740215978816,0.01433721,96442.0,96441.0,0.208418]
[1740215979018,0.22175301,96442.0,96441.0,0.208418]
[1740215979223,0.01433721,96442.0,96441.0,0.208418]
[1740215980525,0.01633721,96442.0,96441.0,0.209418]
[1740215986020,0.01633721,96442.0,96441.0,0.570218]
[1740215992828,0.04903721,96442.0,96441.0,0.570218]
[1740215993523,0.25645301,96442.0,96441.0,0.570218]
[1740215993924,0.04903721,96442.0,96441.0,0.570218]
[1740215995620,0.04903721,96442.0,96441.0,0.209418]
[1740215995925,0.04903721,96442.0,96441.0,0.570218]
[1740215996833,0.25645301,96442.0,96441.0,0.570218]
[1740215997929,0.04903721,96442.0,96441.0,0.570218]
[1740215999926,0.25645301,96442.0,96441.0,0.570218]
[1740216000139,0.04903721,96442.0,96441.0,0.570218]
[1740216001830,0.04903721,96442.0,96441.0,0.75644907]
[1740216002332,0.04903721,96442.0,96441.0,0.77266292]
[1740216002637,0.01633721,96442.0,96441.0,0.77266292]
[1740216003021,0.82208,96461.0,96444.0,0.0518523]
[1740216003222,0.0312,96456.0,96450.0,0.5681986]
[1740216003428,0.0312,96456.0,96450.0,0.7035386]
[1740216003636,0.2073911,96454.0,96450.0,0.7035386]
[1740216003936,0.0321,96452.0,96450.0,0.7035386]
[1740216004139,0.04255269,96452.0,96450.0,0.7035386]
[1740216004529,0.00215558,96451.0,96450.0,0.7035386]
[1740216006240,0.00215558,96451.0,96450.0,0.95196203]
[1740216009442,0.00215558,96451.0,96450.0,0.7035386]
[1740216009650,0.01004312,96457.0,96455.0,0.2073879]
[1740216009839,0.0327,96461.0,96455.0,0.2073879]
[1740216010344,0.0323,96460.0,96455.0,0.22359846]
[1740216011742,0.01035176,96459.0,96455.0,0.22359846]
[1740216012144,0.0323,96460.0,96455.0,0.22359846]
[1740216014157,0.04239625,96460.0,96455.0,0.22359846]
[1740216014347,0.04239625,96460.0,96455.0,0.2073879]
[1740216014653,0.0323,96460.0,96455.0,0.2073879]
[1740216016144,0.0323,96460.0,96455.0,0.39346986]
[1740216016547,0.04246613,96460.0,96455.0,0.39346986]
[1740216020761,0.04246613,96460.0,96455.0,0.50018986]
[1740216021355,0.04246613,96460.0,96455.0,0.87720036]
[1740216022460,0.04246613,96460.0,96455.0,0.89016876]
[1740216023251,0.04246613,96460.0,96455.0,0.7040868]
[1740216024459,0.04246613,96460.0,96455.0,0.6878763]
[1740216026558,0.04246613,96460.0,96455.0,0.7040868]
[1740216027158,0.24984453,96460.0,96455.0,0.5973668]
[1740216027459,0.04246613,96460.0,96455.0,0.5811563]
[1740216028053,0.04246613,96460.0,96455.0,0.59736681]
[1740216028456,0.04246613,96460.0,96455.0,0.58115631]
[1740216029755,0.04246613,96460.0,96455.0,0.5681879]
[1740216030464,0.2385857,96456.0,96455.0,0.58115631]
[1740216030661,0.2385857,96456.0,96455.0,0.5681879]
[1740216031055,0.2385857,96456.0,96455.0,0.3608]
[1740216031254,0.2592584,96449.0,96448.0,0.0518505]
[1740216031556,0.2592584,96449.0,96448.0,0.2592534]
[1740216031763,0.051847,96455.0,96448.0,0.0518505]
[1740216031958,0.051847,96455.0,96448.0,0.2592534]
[1740216031959,0.0314,96449.0,96448.0,0.2592534]
[1740216032260,0.0312,96456.0,96445.0,0.54828196]
[1740216032463,0.2387901,96454.0,96453.0,0.2073922]
[1740216032659,0.0314,96454.0,96453.0,0.2073922]
[1740216032862,0.23879,96454.0,96453.0,0.2073922]
[1740216035862,0.0314,96454.0,96453.0,0.2073922]
[1740216036265,0.23879,96454.0,96453.0,0.2073922]
[1740216036764,0.0314,96454.0,96453.0,0.2073922]
[1740216037066,0.23879,96454.0,96453.0,0.2073922]
[1740216044167,0.0314,96454.0,96453.0,0.2073922]
[1740216044760,0.23879,96454.0,96453.0,0.2073922]
[1740216045976,0.0314,96454.0,96453.0,0.2073922]
[1740216046368,0.23879,96454.0,96453.0,0.2073922]
[1740216047678,0.0314,96454.0,96453.0,0.2073922]
[1740216049765,0.23879,96454.0,96453.0,0.2073922]
[1740216050167,0.0314,96454.0,96453.0,0.2073922]
[1740216050361,0.23879,96454.0,96453.0,0.2073922]
[1740216051977,0.23879,96454.0,96453.0,0.5681922]
[1740216061076,0.0314,96454.0,96453.0,0.5681922]
[1740216063481,0.23879,96454.0,96453.0,0.5681922]
[1740216064191,0.0314,96454.0,96453.0,0.5681922]
[1740216064383,0.23879,96454.0,96453.0,0.5681922]
[1740216065791,0.0314,96454.0,96453.0,0.5681922]
[1740216066586,0.23879,96454.0,96453.0,0.5681922]
[1740216066989,0.0314,96454.0,96453.0,0.5681922]
[1740216067494,0.23879,96454.0,96453.0,0.5681922]
[1740216067907,0.0314,96454.0,96453.0,0.5681922]
[1740216068104,0.23879,96454.0,96453.0,0.5681922]
[1740216068804,0.2385876,96456.0,96455.0,0.2073879]
[1740216070007,0.0312,96456.0,96455.0,0.2073879]
[1740216070204,0.2405857,96456.0,96455.0,0.2385879]
[1740216071207,0.2445857,96456.0,96455.0,0.2385879]
[1740216072309,0.2133857,96456.0,96455.0,0.2385879]
[1740216072497,0.006,96456.0,96455.0,0.2385879]
[1740216076111,0.19248608,96456.0,96455.0,0.2385879]
[1740216077603,0.19148608,96456.0,96455.0,0.2385879]
[1740216078905,0.19148608,96456.0,96455.0,0.5993879]
[1740216079305,0.005,96456.0,96455.0,0.5993879]
[1740216081606,0.2123857,96456.0,96455.0,0.5993879]
[1740216081810,0.005,96456.0,96455.0,0.5993879]
[1740216082310,0.2123857,96456.0,96455.0,0.5681879]
[1740216082499,0.005,96456.0,96455.0,0.5681879]
[1740216082703,0.2123857,96456.0,96455.0,0.5681879]
[1740216084210,0.2123857,96456.0,96455.0,0.75426986]
[1740216088719,0.2123857,96456.0,96455.0,0.5681879]
[1740216091810,0.28234554,96456.0,96455.0,0.5681879]
[1740216097012,0.28234554,96456.0,96455.0,0.3608]
[1740216097207,0.28234554,96456.0,96455.0,0.5681879]
[1740216097624,0.28234554,96456.0,96455.0,0.3608]
[1740216098818,0.28234554,96456.0,96455.0,0.5681879]
[1740216099837,0.2123857,96456.0,96455.0,0.5681879]
[1740216110636,0.2123857,96456.0,96455.0,0.2073879]
[1740216111328,0.36779328,96456.0,96455.0,0.2073879]
[1740216112330,0.2074008,96449.0,96448.0,0.6200391]
[1740216112523,0.2074008,96449.0,96448.0,0.6718877]
[1740216113731,0.2104008,96449.0,96448.0,0.6718877]
[1740216114230,0.2104008,96449.0,96448.0,0.7023877]
[1740216115019,0.27928042,96449.0,96448.0,0.7023877]
[1740216120528,0.27928042,96449.0,96448.0,0.3608]
[1740216120731,0.13387962,96449.0,96440.0,0.0518546]
[1740216120934,0.2074137,96443.0,96442.0,0.2900542]
[1740216122034,0.2074137,96443.0,96442.0,0.2910542]
[1740216122630,0.2074137,96443.0,96442.0,0.2900542]
[1740216122925,0.2074137,96443.0,96442.0,0.2910542]
[1740216125728,0.2074137,96443.0,96442.0,0.2392029]
[1740216125924,0.2074137,96443.0,96442.0,0.001]
[1740216126130,0.2074137,96443.0,96442.0,0.2084158]
[1740216130741,0.25785115,96443.0,96442.0,0.2084158]
[1740216134044,0.2074137,96443.0,96442.0,0.2084158]
[1740216138551,0.0307,96449.0,96447.0,0.2592541]
[1740216138754,0.2074008,96449.0,96448.0,0.6634029]
[1740216139049,0.2073983,96451.0,96450.0,0.2592461]
[1740216139242,0.15547371,96452.0,96451.0,0.2073965]
[1740216140758,0.15947371,96452.0,96451.0,0.2073965]
[1740216140945,0.2113943,96452.0,96451.0,0.2073965]
[1740216141252,0.004,96452.0,96451.0,0.2073965]
[1740216144150,0.004,96452.0,96451.0,0.5681965]
[1740216144342,0.2113943,96452.0,96451.0,0.3608]
[1740216144537,0.004,96452.0,96448.0,0.0323]
[1740216144755,0.2074051,96447.0,96446.0,0.18608196]
[1740216146343,0.2084051,96447.0,96446.0,0.39348916]
[1740216147854,0.2084051,96447.0,96446.0,0.2074072]
[1740216152742,0.28803443,96447.0,96446.0,0.2074072]
[1740216152948,0.33847168,96447.0,96446.0,0.2074072]
[1740216156061,0.33847168,96447.0,96446.0,0.2388072]
[1740216156855,0.13106658,96447.0,96446.0,0.2388072]
[1740216157958,0.01021402,96460.0,96459.0,0.2073793]
[1740216158155,0.1166404,96468.0,96458.0,0.0518453]
[1740216158361,0.25921,96467.0,96466.0,0.2073621]
[1740216158545,0.2073688,96467.0,96466.0,0.2073621]
[1740216158957,0.3170088,96467.0,96466.0,0.2073621]
[1740216159360,0.36037537,96467.0,96466.0,0.2073621]
[1740216159659,0.04336657,96467.0,96466.0,0.2073621]
[1740216160252,0.25072867,96467.0,96466.0,0.2073621]
[1740216160448,0.25472867,96467.0,96466.0,0.2093621]
[1740216161348,0.04736657,96467.0,96466.0,0.2093621]
[1740216161554,0.25472867,96467.0,96466.0,0.2093621]
[1740216162461,0.04736657,96467.0,96466.0,0.2093621]
[1740216164164,0.25472867,96467.0,96466.0,0.2093621]
[1740216166859,0.04736657,96467.0,96466.0,0.2093621]
[1740216167659,0.25472867,96467.0,96466.0,0.2093621]
[1740216168067,0.01426657,96467.0,96466.0,0.2093621]
[1740216170064,0.22162867,96467.0,96466.0,0.2093621]
[1740216172876,0.01426657,96467.0,96466.0,0.2093621]
[1740216175769,0.01426657,96467.0,96466.0,0.5701621]
[1740216178267,0.01426657,96467.0,96466.0,0.2093621]
[1740216178474,0.01426657,96467.0,96466.0,0.5701621]
[1740216178778,7e-08,96467.0,96466.0,0.7425421]
[1740216185083,7e-08,96467.0,96466.0,0.75283055]
[1740216187778,7e-08,96467.0,96466.0,0.7425421]
[1740216192493,7e-08,96467.0,96466.0,0.7115421]
[1740216193393,7e-08,96467.0,96466.0,1.0723421]
[1740216193893,7e-08,96467.0,96466.0,1.0400421]
[1740216194897,0.20736217,96467.0,96466.0,0.9309621]
[1740216195387,0.23996217,96467.0,96466.0,0.9309621]
[1740216199600,0.23996217,96467.0,96466.0,0.5701621]
[1740216200588,0.23996217,96467.0,96466.0,0.2093621]
[1740216200795,0.23996217,96467.0,96466.0,0.5701621]
[1740216202494,0.23996217,96467.0,96466.0,0.002]
[1740216204192,0.34900217,96467.0,96466.0,0.002]
[1740216204596,0.23996217,96467.0,96466.0,0.002]
[1740216204899,0.34896217,96467.0,96466.0,0.002]
[1740216205402,0.34896217,96467.0,96466.0,0.2093642]
[1740216213089,0.23996217,96467.0,96466.0,0.2093642]
[1740216213501,7e-08,96467.0,96466.0,0.2093642]
[1740216216201,0.23836217,96467.0,96466.0,0.2093642]
[1740216216400,0.26896217,96467.0,96466.0,0.2093642]
[1740216216804,0.06160007,96467.0,96466.0,0.2093642]
[1740216217504,0.26896217,96467.0,96466.0,0.2093642]
[1740216217694,0.06160007,96467.0,96466.0,0.2093642]
[1740216219008,0.26896217,96467.0,96466.0,0.2093642]
[1740216219206,0.06160007,96467.0,96466.0,0.2093642]
[1740216219507,0.26896217,96467.0,96466.0,0.2093642]
[1740216223312,0.31938441,96467.0,96466.0,0.2093642]
[1740216226914,0.26896217,96467.0,96466.0,0.2093642]
[1740216228203,0.26896217,96467.0,96466.0,0.002]
[1740216228814,0.26896217,96467.0,96466.0,0.2093642]
[1740216235021,0.37716217,96467.0,96466.0,0.2093642]
[1740216236625,0.53252743,96467.0,96466.0,0.2093642]
[1740216240628,0.53252743,96467.0,96466.0,0.002]
[1740216240828,0.53204743,96467.0,96466.0,0.2093642]
[1740216241029,0.37668217,96467.0,96466.0,0.2093642]
[1740216241329,0.37664217,96467.0,96466.0,0.2093642]
[1740216245433,0.42707056,96467.0,96466.0,0.2093642]
[1740216249333,0.37664217,96467.0,96466.0,0.2093642]
[1740216253724,0.20736217,96467.0,96466.0,0.2093642]
[1740216254531,7e-08,96467.0,96466.0,0.2093642]
[1740216254829,7e-08,96467.0,96466.0,0.5701642]
[1740216255029,7e-08,96467.0,96466.0,0.6031642]
[1740216263639,7e-08,96467.0,96466.0,0.5701642]
[1740216270643,0.20736217,96467.0,96466.0,0.5701642]
[1740216272744,0.25778501,96467.0,96466.0,0.5701642]
[1740216274140,0.05042291,96467.0,96466.0,0.5701642]
[1740216276351,0.05042291,96467.0,96466.0,0.2093642]
[1740216276548,0.05042291,96467.0,96466.0,0.5701642]
[1740216277240,7e-08,96467.0,96466.0,0.5701642]
[1740216279751,0.20736217,96467.0,96466.0,0.5701642]
[1740216291952,0.2073814,96458.0,96447.0,0.72398181]
[1740216292151,0.2073857,96456.0,96455.0,0.24444893]
[1740216294160,0.2083857,96456.0,96455.0,0.24444893]
[1740216294759,0.2093857,96456.0,96455.0,0.24444893]
[1740216294959,0.2074051,96447.0,96446.0,0.21356169]
[1740216295156,0.2074051,96447.0,96446.0,0.42096889]
[1740216295756,0.21994878,96447.0,96446.0,0.42096889]
[1740216297858,0.22094878,96447.0,96446.0,0.42096889]
[1740216298063,0.27138317,96447.0,96446.0,0.42096889]
[1740216300965,0.22094878,96447.0,96446.0,0.42096889]
[1740216303064,0.01354368,96447.0,96446.0,0.42096889]
[1740216303564,0.01354368,96447.0,96446.0,0.48296889]
[1740216304254,0.001,96447.0,96446.0,0.48296889]
[1740216304459,0.033,96457.0,96456.0,0.2073857]
[1740216304860,0.2403836,96457.0,96456.0,0.2073857]
[1740216305370,0.033,96457.0,96456.0,0.2073857]
[1740216305559,0.2403836,96457.0,96456.0,0.2073857]
[1740216306667,0.2413836,96457.0,96456.0,0.2073857]
[1740216307168,0.2592344,96456.0,96455.0,0.2073871]
[1740216308471,0.2896344,96456.0,96455.0,0.2073871]
[1740216309565,0.2906344,96456.0,96455.0,0.2073871]
[1740216316878,0.0314,96456.0,96455.0,0.2073871]
[1740216317069,0.2387857,96456.0,96455.0,0.2073871]
[1740216319476,0.0314,96456.0,96455.0,0.2073871]
[1740216319680,0.0518385,96471.0,96464.0,0.2073685]
[1740216319681,0.0518387,96471.0,96464.0,0.2073685]
[1740216319888,0.20752164,96465.0,96464.0,0.2073685]
[1740216320379,0.00015524,96465.0,96464.0,0.2073685]
[1740216320879,0.01333469,96465.0,96464.0,0.2083685]
[1740216321270,0.01333469,96465.0,96464.0,0.2093685]
[1740216328897,0.22070109,96465.0,96464.0,0.2093685]
[1740216329187,0.01333469,96465.0,96464.0,0.2093685]
[1740216329575,0.00115524,96465.0,96464.0,0.2093685]
[1740216337276,0.06760325,96465.0,96464.0,0.2093685]
[1740216339384,0.06760325,96465.0,96464.0,0.22557931]
[1740216341090,0.00115524,96465.0,96464.0,0.22557931]
[1740216343588,0.00115524,96465.0,96464.0,0.2093685]
[1740216349393,0.00115524,96465.0,96464.0,0.5701685]
[1740216349593,0.0652,96470.0,96469.0,0.2073578]
[1740216350795,0.0652,96470.0,96469.0,0.2083578]
[1740216351291,0.0652,96470.0,96469.0,0.2093578]
[1740216351485,0.0652,96470.0,96469.0,0.2255659]
[1740216351689,0.0652,96470.0,96469.0,0.2093578]
[1740216352679,0.0652,96470.0,96469.0,0.5701578]
[1740216352995,0.07733076,96470.0,96469.0,0.5701578]
[1740216360697,0.07733076,96470.0,96469.0,0.2093578]
[1740216360895,0.07733076,96470.0,96469.0,0.5701578]
[1740216374095,0.0652,96470.0,96469.0,0.5701578]
[1740216374301,0.0324,96471.0,96470.0,0.2073556]
[1740216376000,0.0324,96471.0,96470.0,0.2083556]
[1740216376504,0.0324,96471.0,96470.0,0.2093556]
[1740216383617,0.15537017,96471.0,96470.0,0.2093556]
[1740216389722,0.36272367,96471.0,96470.0,0.2093556]
[1740216390130,0.42582367,96471.0,96470.0,0.2093556]
[1740216392926,0.3028535,96471.0,96470.0,0.2093556]
[1740216397533,0.3028535,96471.0,96470.0,0.5701556]
[1740216399230,0.35327477,96471.0,96470.0,0.5701556]
[1740216400029,0.35327477,96471.0,96470.0,0.2093556]
[1740216400235,0.35327477,96471.0,96470.0,0.5701556]
[1740216406239,0.3028535,96471.0,96470.0,0.5701556]
[1740216412039,0.3028535,96471.0,96470.0,0.2093556]
[1740216412245,0.3028535,96471.0,96470.0,0.5701556]
[1740216417140,0.35327477,96471.0,96470.0,0.5701556]
[1740216423146,0.35327477,96471.0,96470.0,0.3628]
[1740216423352,0.35327477,96471.0,96470.0,0.002]
[1740216423853,0.35327477,96471.0,96470.0,0.2093556]
[1740216424050,0.35327477,96471.0,96470.0,0.002]
[1740216424249,0.14592127,96471.0,96461.0,0.3608]
[1740216424548,0.2592155,96463.0,96462.0,0.2592156]
[1740216425438,0.3231155,96463.0,96462.0,0.2592156]
[1740216426444,0.3241155,96463.0,96462.0,0.2602156]
[1740216429957,0.56104446,96463.0,96462.0,0.2602156]
[1740216430451,0.56104446,96463.0,96462.0,0.001]
[1740216432051,0.56104446,96463.0,96462.0,0.2083728]
[1740216433062,0.37453677,96463.0,96462.0,0.001]
[1740216433261,0.37453677,96463.0,96462.0,0.2083728]
[1740216436260,0.37453677,96463.0,96462.0,0.001]
[1740216436659,0.45924428,96463.0,96462.0,0.001]
[1740216437362,0.45924428,96463.0,96462.0,0.2083728]
[1740216438562,0.45924428,96463.0,96462.0,0.001]
[1740216439754,0.45924428,96463.0,96462.0,0.2083728]
[1740216441065,0.45924428,96463.0,96462.0,0.001]
[1740216443863,0.2073836,96457.0,96456.0,0.2132897]
[1740216444168,0.2073836,96457.0,96456.0,0.2118497]
[1740216444372,0.2401836,96457.0,96456.0,0.2118497]
[1740216444965,0.2411836,96457.0,96456.0,0.2118497]
[1740216445269,0.2411836,96457.0,96456.0,0.4192354]
[1740216445772,0.2411836,96457.0,96456.0,0.2118497]
[1740216445970,0.2411836,96457.0,96456.0,0.4192354]
[1740216446468,0.2411836,96457.0,96456.0,0.2118497]
[1740216446669,0.2411836,96457.0,96456.0,0.4192354]
[1740216447972,0.29161745,96457.0,96456.0,0.4192354]
[1740216451475,0.48054201,96457.0,96456.0,0.4192354]
[1740216455375,0.29161745,96457.0,96456.0,0.4192354]
[1740216459681,0.2411836,96457.0,96456.0,0.4192354]
[1740216459883,0.2411836,96457.0,96456.0,0.2118497]
[1740216460077,0.2411836,96457.0,96456.0,0.4192354]
[1740216460579,0.2411836,96457.0,96456.0,0.2118497]
[1740216460781,0.2411836,96457.0,96456.0,0.4192354]
[1740216468877,0.2411836,96457.0,96456.0,0.2118497]
[1740216470292,0.2411836,96457.0,96456.0,0.10914659]
[1740216471178,0.38007952,96457.0,96456.0,0.10914659]
[1740216472897,0.38007952,96457.0,96456.0,0.08670488]
[1740216474101,0.2074029,96448.0,96447.0,0.0302]
[1740216474499,0.3054029,96448.0,96447.0,0.0302]
[1740216476106,0.2074051,96447.0,96446.0,0.00015549]
[1740216477705,0.2094051,96447.0,96446.0,0.00015549]
[1740216478501,0.45997829,96447.0,96446.0,0.00015549]
[1740216479501,0.45797829,96447.0,96446.0,0.00015549]
[1740216479796,0.46297829,96447.0,96446.0,0.20756269]
[1740216480400,0.46397829,96447.0,96446.0,0.20756269]
[1740216480810,0.46597829,96447.0,96446.0,0.20756269]
[1740216481813,0.45253121,96447.0,96446.0,0.20756269]
[1740216482004,0.45153121,96447.0,96446.0,0.20756269]
[1740216482715,0.44453121,96447.0,96446.0,0.20756269]
[1740216483010,0.44953121,96447.0,96446.0,0.20856269]
[1740216483512,0.24212611,96447.0,96446.0,0.20856269]
[1740216483714,0.44953121,96447.0,96446.0,0.20856269]
[1740216485514,0.26283895,96447.0,96446.0,0.20856269]
[1740216488101,0.26183895,96447.0,96446.0,0.20856269]
[1740216488914,0.25983895,96447.0,96446.0,0.20756269]
[1740216495403,0.29293895,96447.0,96446.0,0.20756269]
[1740216497116,0.49385262,96447.0,96446.0,0.20756269]
[1740216497613,0.49485262,96447.0,96446.0,0.20756269]
[1740216498513,0.49585262,96447.0,96446.0,0.20756269]
[1740216499813,0.49585262,96447.0,96446.0,0.00015549]
[1740216500801,0.85665262,96447.0,96446.0,0.00015549]
[1740216501007,0.75332752,96447.0,96426.0,0.0306]
[1740216501317,0.2074481,96427.0,96426.0,0.2899083]
[1740216501505,0.2074481,96427.0,96426.0,0.238047]
[1740216502012,0.2074481,96427.0,96426.0,0.598847]
[1740216502512,0.21868708,96427.0,96426.0,0.601847]
[1740216503319,0.21868708,96427.0,96426.0,0.638047]
[1740216503617,0.21868708,96427.0,96426.0,0.635047]
[1740216504018,0.21868708,96427.0,96426.0,0.632047]
[1740216507513,0.21868708,96427.0,96426.0,0.240047]
[1740216507821,0.21868708,96427.0,96426.0,0.600847]
[1740216512826,0.21868708,96427.0,96426.0,0.3628]
[1740216515023,0.45565419,96427.0,96426.0,0.3628]
[1740216518729,0.3679834,96427.0,96426.0,0.3628]
[1740216520621,0.3679834,96427.0,96426.0,0.002]
[1740216520622,0.7287834,96427.0,96426.0,0.002]
[1740216521223,0.2074674,96418.0,96408.0,0.3608]
[1740216521424,0.2074674,96418.0,96411.0,0.0518701]
[1740216521623,0.2074674,96418.0,96415.0,0.2074735]
[1740216521624,0.2712674,96418.0,96415.0,0.2074735]
[1740216521830,0.2712674,96418.0,96415.0,0.2074727]
[1740216522233,0.2712674,96418.0,96414.0,0.2074754]
[1740216522530,0.2712674,96418.0,96417.0,0.00515549]
[1740216523330,0.2712674,96418.0,96417.0,0.21262509]
[1740216523730,0.2712674,96418.0,96417.0,0.00515549]
[1740216524231,0.2712674,96418.0,96417.0,0.21562509]
[1740216524436,0.3039674,96418.0,96417.0,0.21562509]
[1740216526735,0.3139674,96418.0,96417.0,0.21562509]
[1740216527128,0.3139674,96418.0,96417.0,0.00815549]
[1740216527522,0.3139674,96418.0,96417.0,0.21562509]
[1740216527734,0.36441078,96418.0,96417.0,0.21562509]
[1740216531941,0.36441078,96418.0,96417.0,0.00815549]
[1740216532141,0.36441078,96418.0,96417.0,0.21562509]
[1740216533235,0.35441078,96418.0,96417.0,0.21562509]
[1740216534139,0.36441078,96418.0,96417.0,0.21562509]
[1740216535539,0.25791078,96418.0,96417.0,0.21562509]
[1740216535741,0.26791078,96418.0,96417.0,0.21562509]
[1740216536745,0.2174674,96418.0,96417.0,0.21562509]
[1740216537242,0.2074674,96418.0,96417.0,0.21562509]
[1740216537547,0.2174674,96418.0,96417.0,0.21562509]
[1740216542941,0.2074674,96418.0,96417.0,0.21562509]
[1740216543951,0.25791779,96418.0,96417.0,0.21562509]
[1740216550453,0.05045039,96418.0,96417.0,0.21562509]
[1740216550654,0.25791779,96418.0,96417.0,0.21562509]
[1740216551243,0.28971779,96418.0,96417.0,0.21562509]
[1740216555351,0.25791779,96418.0,96417.0,0.21562509]
[1740216563665,0.34782504,96418.0,96417.0,0.21562509]
[1740216568256,0.25791779,96418.0,96417.0,0.21562509]
[1740216568968,0.28841779,96418.0,96417.0,0.21562509]
[1740216578874,0.28841779,96418.0,96417.0,0.57642509]
[1740216587474,0.08095039,96418.0,96417.0,0.57642509]
[1740216587668,0.28841779,96418.0,96417.0,0.57642509]
[1740216589881,0.37329403,96418.0,96417.0,0.57642509]
[1740216590792,0.37329403,96418.0,96417.0,0.59264301]
[1740216592191,0.37329403,96418.0,96417.0,0.57642509]
[1740216594284,0.2379674,96418.0,96417.0,0.57642509]
[1740216599989,0.2379674,96418.0,96417.0,0.59264301]
[1740216600383,0.2379674,96418.0,96417.0,0.57642509]
[1740216601602,0.28841648,96418.0,96417.0,0.57642509]
[1740216604096,0.28841648,96418.0,96417.0,0.59264301]
[1740216606109,0.37256077,96418.0,96417.0,0.57642509]
[1740216610110,0.28841648,96418.0,96417.0,0.57642509]
[1740216610305,0.28841648,96418.0,96417.0,0.59264302]
[1740216612013,0.08094908,96418.0,96417.0,0.59264302]
[1740216612215,0.10355508,96991.0,96417.0,0.41112204]
[1740216612216,0.3608,96451.0,96417.0,0.41112204]
[1740216612509,0.3608,96464.0,96417.0,0.41112204]
[1740216612510,0.0663,96437.0,96433.0,0.2074352]
[1740216612716,0.0663,96437.0,96433.0,0.32773313]
[1740216612918,0.05201289,96436.0,96433.0,0.35923313]
[1740216613109,0.06285264,96436.0,96433.0,0.35923313]
[1740216613614,0.427833,96434.0,96433.0,0.35923313]
[1740216614510,0.428833,96434.0,96433.0,0.35922947]
[1740216614714,0.208433,96434.0,96433.0,0.35922947]
[1740216614908,0.208433,96434.0,96433.0,0.25514947]
[1740216615108,0.210433,96434.0,96433.0,0.3430152]